fUSD/lending_fUSD_20241121
["ID","MTS","AMOUNT","RATE_DAILY","PERIOD"]
[342840708,1732174251752,-1065.76,0.00041643,4]
[342840709,1732174251762,-500.0,0.00041643,4]
[342840710,1732174251772,-999.64,0.00041643,4]
[342840711,1732174251782,-500.0,0.00041643,4]
[342840712,1732174251791,-526.79,0.00041643,4]
[342840713,1732174251801,-500.0,0.00041643,4]
[342840714,1732174251811,-500.0,0.00041643,4]
[342840715,1732174251821,-500.0,0.00041643,4]
[342840716,1732174251830,-1041.94,0.00041643,4]
[342840717,1732174251840,-758.86,0.00041643,4]
[342840718,1732174251850,-794.57,0.00041643,4]
[342840719,1732174251860,-594.44,0.00041643,4]
[342840720,1732174251870,-500.0,0.00041643,4]
[342840721,1732174251879,-957.41,0.00041643,4]
[342840722,1732174251889,-500.0,0.00041643,4]
[342840723,1732174251899,-500.0,0.00041643,4]
[342840724,1732174251908,-500.0,0.00041643,4]
[342840725,1732174251917,-500.0,0.00041643,4]
[342840726,1732174251927,-1263.17,0.00041643,4]
[342840727,1732174251936,-162.84631046,0.00041643,4]
[342840728,1732174251947,-500.0,0.00041643,4]
[342840729,1732174251957,-500.0,0.00041643,4]
[342840730,1732174251967,-1402.93,0.00041643,4]
[342840731,1732174251977,-1702.96,0.00041643,4]
[342840732,1732174251987,-1059.03,0.00041643,4]
[342840733,1732174251996,-500.0,0.00041643,4]
[342840734,1732174252005,-500.0,0.00041643,4]
[342840735,1732174252014,-1128.5,0.00041643,4]
[342840736,1732174252023,-791.54,0.00041643,4]
[342840737,1732174252032,-500.0,0.00041643,4]
[342840738,1732174252042,-816.69,0.00041643,4]
[342840739,1732174252052,-3762.15,0.00041643,4]
[342840740,1732174252062,-1022.91,0.00041643,4]
[342840741,1732174252071,-500.0,0.00041643,4]
[342840742,1732174252082,-1957.55,0.00041643,4]
[342840743,1732174252092,-151.0,0.00041643,14]
[342840744,1732174252101,-151.0,0.00041643,14]
[342840745,1732174252111,-151.0,0.00041643,14]
[342840746,1732174252120,-151.0,0.00041643,14]
[342840747,1732174252129,-437.70500234,0.00041661,2]
[342840748,1732174252138,-150.23,0.00041778,2]
[342840749,1732174252148,-1053.3476,0.00041888,30]
[342840750,1732174252158,-1343.63,0.00041916,4]
[342840751,1732174252167,-1423.05,0.00041916,4]
[342840752,1732174252176,-500.0,0.00041916,4]
[342840753,1732174252186,-500.0,0.00041916,4]
[342840754,1732174252196,-500.0,0.00041917,4]
[342840755,1732174252206,-500.0,0.00041917,4]
[342840756,1732174252219,-2114.35,0.00041917,4]
[342840757,1732174252239,-500.0,0.00041917,4]
[342840758,1732174252255,-500.0,0.00041917,4]
[342840759,1732174252266,-500.0,0.00041917,4]
[342840760,1732174252275,-2698.78,0.00041917,4]
[342840761,1732174252285,-751.14,0.00041917,4]
[342840762,1732174252295,-500.0,0.00041917,4]
[342840763,1732174252304,-500.0,0.00041917,4]
[342840764,1732174252314,-1065.76,0.00041917,4]
[342840765,1732174252325,-500.0,0.00041917,4]
[342840766,1732174252336,-999.64,0.00041917,4]
[342840767,1732174252345,-500.0,0.00041917,4]
[342840768,1732174252355,-526.79,0.00041917,4]
[342840769,1732174252364,-500.0,0.00041917,4]
[342840770,1732174252373,-500.0,0.00041917,4]
[342840771,1732174252383,-500.0,0.00041917,4]
[342840772,1732174252393,-1041.94,0.00041917,4]
[342840773,1732174252403,-758.86,0.00041917,4]
[342840774,1732174252412,-794.57,0.00041917,4]
[342840775,1732174252422,-594.44,0.00041917,4]
[342840776,1732174252431,-500.0,0.00041917,4]
[342840777,1732174252440,-957.41,0.00041917,4]
[342840778,1732174252455,-500.0,0.00041917,4]
[342840779,1732174252465,-500.0,0.00041917,4]
[342840780,1732174252474,-500.0,0.00041917,4]
[342840781,1732174252483,-500.0,0.00041917,4]
[342840782,1732174252493,-1263.17,0.00041917,4]
[342840783,1732174252504,-500.0,0.00041917,4]
[342840784,1732174252514,-500.0,0.00041917,4]
[342840785,1732174252524,-1402.93,0.00041917,4]
[342840786,1732174252534,-1702.96,0.00041917,4]
[342840787,1732174252543,-1059.03,0.00041917,4]
[342840788,1732174252552,-500.0,0.00041917,4]
[342840789,1732174252562,-500.0,0.00041917,4]
[342840790,1732174252571,-1128.5,0.00041917,4]
[342840791,1732174252581,-791.54,0.00041917,4]
[342840792,1732174252590,-500.0,0.00041917,4]
[342840793,1732174252600,-816.69,0.00041917,4]
[342840794,1732174252610,-3762.15,0.00041917,4]
[342840795,1732174252620,-1022.91,0.00041917,4]
[342840796,1732174252629,-500.0,0.00041917,4]
[342840797,1732174252639,-1957.55,0.00041917,4]
[342840798,1732174252648,-151.0,0.00041917,7]
[342840799,1732174252658,-419.106937,0.00041917,14]
[342840800,1732174252667,-151.0,0.00041917,14]
[342840801,1732174252676,-419.106937,0.00041917,14]
[342840802,1732174252685,-152.293454,0.00041917,14]
[342840803,1732174252694,-151.0,0.00041917,14]
[342840804,1732174252707,-151.0,0.00041917,14]
[342840805,1732174252716,-151.0,0.00041917,14]
[342840806,1732174252726,-151.0,0.00041917,14]
[342840807,1732174252737,-1000.0,0.0004194,2]
[342840808,1732174252746,-335.86,0.00041944,120]
[342840809,1732174252755,-6994.4,0.00042,30]
[342840810,1732174252765,-1319.08171196,0.0004201,2]
[342840811,1732174252775,-500.0,0.000421,10]
[342840812,1732174252784,-437.70500234,0.0004217,2]
[342840813,1732174252795,-1343.63,0.0004219,4]
[342840814,1732174252805,-1423.05,0.0004219,4]
[342840815,1732174252815,-500.0,0.0004219,4]
[342840816,1732174252826,-500.0,0.0004219,4]
[342840817,1732174252836,-500.0,0.00042191,4]
[342840818,1732174252846,-501.30141443,0.00042191,4]
[342840819,1732174252856,-2114.35,0.00042191,4]
[342840820,1732174252867,-500.0,0.00042191,4]
[342840821,1732174252876,-500.0,0.00042191,4]
[342840822,1732174252886,-500.0,0.00042191,4]
[342840823,1732174252895,-2698.78,0.00042191,4]
[342840824,1732174252906,-751.14,0.00042191,4]
[342840825,1732174252916,-500.0,0.00042191,4]
[342840826,1732174252926,-500.0,0.00042191,4]
[342840827,1732174252935,-1065.76,0.00042191,4]
[342840828,1732174252947,-500.0,0.00042191,4]
[342840829,1732174252957,-999.64,0.00042191,4]
[342840830,1732174252967,-500.0,0.00042191,4]
[342840831,1732174252977,-526.79,0.00042191,4]
[342840832,1732174252987,-500.0,0.00042191,4]
[342840833,1732174252998,-500.0,0.00042191,4]
[342840834,1732174253008,-500.0,0.00042191,4]
[342840835,1732174253018,-1041.94,0.00042191,4]
[342840836,1732174253027,-758.86,0.00042191,4]
[342840837,1732174253037,-794.57,0.00042191,4]
[342840838,1732174253046,-594.44,0.00042191,4]
[342840839,1732174253055,-500.0,0.00042191,4]
[342840840,1732174253065,-957.41,0.00042191,4]
[342840841,1732174253075,-500.0,0.00042191,4]
[342840842,1732174253085,-500.0,0.00042191,4]
[342840843,1732174253094,-500.0,0.00042191,4]
[342840844,1732174253104,-500.0,0.00042191,4]
[342840845,1732174253113,-1263.17,0.00042191,4]
[342840846,1732174253123,-500.0,0.00042191,4]
[342840847,1732174253133,-500.0,0.00042191,4]
[342840848,1732174253142,-1402.93,0.00042191,4]
[342840849,1732174253152,-1702.96,0.00042191,4]
[342840850,1732174253162,-1059.03,0.00042191,4]
[342840851,1732174253171,-500.0,0.00042191,4]
[342840852,1732174253180,-500.0,0.00042191,4]
[342840853,1732174253190,-1128.5,0.00042191,4]
[342840854,1732174253201,-791.54,0.00042191,4]
[342840855,1732174253211,-458.80918232,0.00042191,4]
[342840856,1732174253225,-816.69,0.00042191,4]
[342840857,1732174253235,-3762.15,0.00042191,4]
[342840858,1732174253244,-1022.91,0.00042191,4]
[342840859,1732174253254,-500.0,0.00042191,4]
[342840860,1732174253263,-1957.55,0.00042191,4]
[342840861,1732174253274,-151.0,0.00042191,14]
[342840862,1732174253283,-204.651667,0.00042191,14]
[342840863,1732174253292,-151.0,0.00042191,14]
[342840864,1732174253302,-151.0,0.00042191,14]
[342840865,1732174253312,-5174.10312272,0.00042233,15]
[342840866,1732174253321,-1405.38,0.0004232,2]
[342840867,1732174253331,-157.5,0.00042374,2]
[342840868,1732174253341,-1343.63,0.00042464,4]
[342840869,1732174253351,-1423.05,0.00042464,4]
[342840870,1732174253360,-506.11835683,0.00042464,4]
[342840871,1732174253370,-500.0,0.00042464,4]
[342840872,1732174253380,-500.0,0.00042465,4]
[342840873,1732174253389,-2114.35,0.00042465,4]
[342840874,1732174253398,-500.0,0.00042465,4]
[342840875,1732174253408,-500.0,0.00042465,4]
[342840876,1732174253417,-345.85310359,0.00042465,4]
[342840877,1732174253427,-2698.78,0.00042465,4]
[342840878,1732174253436,-751.14,0.00042465,4]
[342840879,1732174253447,-500.0,0.00042465,4]
[342840880,1732174253456,-500.0,0.00042465,4]
[342840881,1732174253466,-1065.76,0.00042465,4]
[342840882,1732174253476,-500.0,0.00042465,4]
[342840883,1732174253485,-999.64,0.00042465,4]
[342840884,1732174253494,-500.0,0.00042465,4]
[342840885,1732174253503,-526.79,0.00042465,4]
[342840886,1732174253513,-500.0,0.00042465,4]
[342840887,1732174253522,-500.0,0.00042465,4]
[342840888,1732174253532,-500.0,0.00042465,4]
[342840889,1732174253542,-1041.94,0.00042465,4]
[342840890,1732174253552,-758.86,0.00042465,4]
[342840891,1732174253561,-794.57,0.00042465,4]
[342840892,1732174253571,-594.44,0.00042465,4]
[342840893,1732174253581,-595.81958249,0.00042465,4]
[342840894,1732174253590,-957.41,0.00042465,4]
[342840895,1732174253601,-500.0,0.00042465,4]
[342840896,1732174253611,-500.0,0.00042465,4]
[342840897,1732174253621,-500.0,0.00042465,4]
[342840898,1732174253631,-522.10307584,0.00042465,4]
[342840899,1732174253640,-1263.17,0.00042465,4]
[342840900,1732174253649,-500.0,0.00042465,4]
[342840901,1732174253660,-500.0,0.00042465,4]
[342840902,1732174253669,-1402.93,0.00042465,4]
[342840903,1732174253679,-1702.96,0.00042465,4]
[342840904,1732174253689,-498.58298625,0.00042465,4]
[342840905,1732174253699,-1059.03,0.00042465,4]
[342840906,1732174253710,-500.0,0.00042465,4]
[342840907,1732174253721,-1128.5,0.00042465,4]
[342840908,1732174253732,-791.54,0.00042465,4]
[342840909,1732174253742,-816.69,0.00042465,4]
[342840910,1732174253752,-3762.15,0.00042465,4]
[342840911,1732174253761,-1022.91,0.00042465,4]
[342840912,1732174253771,-500.0,0.00042465,4]
[342840913,1732174253780,-1957.55,0.00042465,4]
[342840914,1732174253792,-151.847699,0.00042465,14]
[342840915,1732174253805,-151.0,0.00042465,14]
[342840916,1732174253815,-151.0,0.00042465,14]
[342840917,1732174253824,-151.0,0.00042465,14]
[342840918,1732174253834,-151.0,0.00042465,7]
[342840919,1732174253843,-151.0,0.00042465,14]
[342840920,1732174253853,-419.106937,0.00042465,14]
[342840921,1732174253862,-151.0,0.00042465,14]
[342840922,1732174253871,-419.106937,0.00042465,14]
[342840923,1732174253881,-153.655498,0.00042465,14]
[342840924,1732174253890,-151.0,0.00042465,14]
[342840925,1732174253900,-151.0,0.00042465,14]
[342840926,1732174253910,-151.0,0.00042465,14]
[342840927,1732174253920,-151.0,0.00042465,14]
[342840928,1732174253930,-151.0,0.00042465,14]
[342840929,1732174253939,-151.0,0.00042465,14]
[342840930,1732174253951,-642.95145482,0.00042648,10]
[342840931,1732174253960,-437.70500234,0.00042679,2]
[342840932,1732174253970,-1343.63,0.00042738,4]
[342840933,1732174253980,-1423.05,0.00042738,4]
[342840934,1732174253990,-500.0,0.00042738,4]
[342840935,1732174253999,-151.0,0.00042738,14]
[342840936,1732174254009,-502.59626371,0.00042739,4]
[342840937,1732174254018,-2114.35,0.00042739,4]
[342840938,1732174254028,-500.0,0.00042739,4]
[342840939,1732174254038,-500.0,0.00042739,4]
[342840940,1732174254047,-1518.48403486,0.00042739,4]
[342840941,1732174254124,-1180.29596514,0.00042739,4]
[342840942,1732174254134,-751.14,0.00042739,4]
[342840943,1732174254143,-500.0,0.00042739,4]
[342840944,1732174254152,-500.0,0.00042739,4]
[342840945,1732174254161,-529.33398313,0.00042739,4]
[342840946,1732174254210,-536.30321523,0.00042739,4]
[342840948,1732174606126,696.76575428,9e-05,2]
[342840949,1732174644781,-1092.5785,0.00025,2]
[342840950,1732174644816,-151.0,0.0003,120]
[342840951,1732174644852,-187.5444,0.0003,30]
[342840952,1732174644921,-312.4556,0.0003,30]
[342840953,1732174644955,-569.11867202,0.0003,30]
[342840954,1732174644989,-500.0,0.000305,30]
[342840955,1732174645025,-500.0,0.000305,30]
[342840956,1732174645058,-1368.12572798,0.000319,120]
[342840957,1732174645095,-586.20517202,0.000319,120]
[342840958,1732174645129,-161.45,0.00033013,2]
[342840959,1732174645163,-376.64482798,0.00034192,2]
[342840960,1732174645203,-181.61,0.000345,120]
[342840961,1732174645356,-418.39,0.000345,120]
[342840962,1732174645391,-191.23922134,0.00035212,120]
[342840963,1732174645426,-181.61,0.000413,30]
[342840964,1732174645460,-4129.58077866,0.00041432,30]
[342840965,1732174645555,-250.0,0.00041681,120]
[342840966,1732174645589,-715.93367202,0.00034192,2]
[342840967,1732174645614,-150.0,0.00035058,2]
[342840968,1732174645640,-1318.86441122,0.00038217,2]
[342840969,1732174645665,-925.45591676,0.00040018,2]
[342840970,1732174645700,-604.0,0.00041432,30]
[342840971,1732174645737,-198.84408324,0.00040018,2]
[342840972,1732174646838,-1431.1229,0.00040762,2]
[342840973,1732174646940,-152.0,0.00041173,3]
[342840974,1732174646967,-150.0,0.000413,2]
[342840975,1732174646991,-620.54,0.000413,2]
[342840976,1732174647018,-701.81,0.000413,2]
[342840977,1732174647042,-543.28301676,0.000413,2]
[342840978,1732174647086,-905.06698324,0.000413,2]
[342840979,1732174647110,-94.93301676,0.000413,2]
[342840980,1732174647181,-234.06698324,0.000413,2]
[342840981,1732174647207,-389.28,0.00041332,2]
[342840982,1732174647232,-267.11301676,0.00041367,2]
[342840983,1732174649837,-3286.896,0.00041367,2]
[342840984,1732174649865,-187.23922134,0.00041432,30]
[342840985,1732174649890,-1352.94077866,0.00041432,10]
[342840986,1732174792579,191.23922134,0.00031202,120]
[342840987,1732174792605,1478.11127866,0.00031202,120]
[342840990,1732175135533,-155.38,0.00015342,2]
[342840991,1732175135555,-1495.99922859,0.000241,2]
[342840998,1732175231120,-150.0,0.00016862,2]
[342840999,1732175231142,-206.44409989,0.000241,2]
[342841000,1732175238087,-188.78166105,0.000241,2]
[342841002,1732175245109,-1226.77501047,0.000241,2]
[342841003,1732175245132,-1059.40812564,0.00024832,2]
[342841004,1732175245156,-500.0,0.00024932,2]
[342841005,1732175245178,-448.7414342,0.00025379,2]
[342841006,1732175326538,300.0,0.000319,120]
[342841007,1732175339484,300.0,0.000305,30]
[342841008,1732175345123,-150.0,0.00018542,2]
[342841009,1732175345147,-155.38,0.00025479,2]
[342841010,1732175345170,-250.0,0.00031,2]
[342841011,1732175345194,-300.0,0.00031,30]
[342841012,1732175345216,-150.0,0.00031288,2]
[342841013,1732175345238,-161.45,0.00031406,2]
[342841014,1732175345259,-610.66669142,0.00031675,2]
[342841015,1732175345282,-400.0,0.00031774,2]
[342841016,1732175345304,-153.0,0.00031775,2]
[342841017,1732175345327,-153.0,0.00031775,2]
[342841018,1732175345353,-153.0,0.00031775,2]
[342841019,1732175345375,-153.0,0.00031775,2]
[342841020,1732175345397,-153.0,0.00031775,2]
[342841021,1732175345420,-153.0,0.00031775,2]
[342841022,1732175345445,-153.0,0.00031775,2]
[342841023,1732175345468,-153.0,0.00031775,2]
[342841024,1732175345496,-153.0,0.00031775,2]
[342841025,1732175345518,-153.0,0.00031775,2]
[342841026,1732175345542,-153.0,0.00031775,2]
[342841027,1732175345565,-153.0,0.00031775,2]
[342841028,1732175345590,-153.0,0.00031775,2]
[342841029,1732175345614,-153.0,0.00031775,2]
[342841030,1732175345637,-153.0,0.00031775,2]
[342841031,1732175345659,-153.0,0.00031775,2]
[342841032,1732175345682,-153.0,0.00031775,2]
[342841033,1732175345707,-153.0,0.00031775,2]
[342841034,1732175345728,-300.0,0.00033,2]
[342841035,1732175345749,-793.53,0.00033,2]
[342841036,1732175345772,-560.0,0.00034183,2]
[342841037,1732175349102,-150.0,0.00034548,10]
[342841038,1732175349132,-150.0,0.00034799,4]
[342841039,1732175349156,-350.0,0.00035,2]
[342841040,1732175349179,-187.24,0.00035,10]
[342841041,1732175349203,-450.0,0.00035606,2]
[342841042,1732175349227,-14537.87006317,0.00035607,2]
[342841043,1732175362094,-1503.77055103,0.00035607,2]
[342841044,1732175362116,-9827.50220223,0.00035608,2]
[342841045,1732175366719,150.0,0.00020396,2]
[342841046,1732175368112,-10234.95175192,0.00035608,2]
[342841047,1732175395411,153.0,0.00031775,2]
[342841048,1732175395652,153.0,0.00031775,2]
[342841049,1732175397082,153.0,0.00031775,2]
[342841050,1732175397171,153.0,0.00031775,2]
[342841051,1732175397244,153.0,0.00031775,2]
[342841052,1732175397397,153.0,0.00031775,2]
[342841060,1732175432140,-300.0,0.00035,30]
[342841061,1732175432152,-188.0,0.00035,30]
[342841062,1732175432161,-336.10768824,0.00035508,2]
[342841063,1732175432171,-22126.80572887,0.00035608,2]
[342841064,1732175432180,-155.38,0.00035616,2]
[342841065,1732175432190,-400.0,0.00037,2]
[342841066,1732175432200,-963.57664606,0.00037092,2]
[342841067,1732175432212,-104.50335394,0.00037092,2]
[342841068,1732175432221,-158.55,0.00038991,120]
[342841069,1732175432231,-450.0,0.00039,2]
[342841070,1732175432241,-250.0,0.00039034,120]
[342841071,1732175432250,-273.27146414,0.00039169,2]
[342841072,1732175432259,-194.64,0.00039272,2]
[342841073,1732175432269,-243.59,0.00039307,2]
[342841074,1732175432278,-1068.08,0.00039356,2]
[342841075,1732175432287,-161.17,0.00039508,120]
[342841076,1732175432297,-250.0,0.00039671,2]
[342841077,1732175432311,-184.81,0.00039781,2]
[342841078,1732175432320,-890.46,0.00039911,2]
[342841079,1732175432330,-1000.0,0.00040421,2]
[342841080,1732175432340,-162.64,0.00040851,120]
[342841081,1732175432350,-3000.0,0.0004095,39]
[342841082,1732175432360,-500.0,0.00041,2]
[342841083,1732175432370,-2083.0,0.00041,117]
[342841084,1732175432379,-250.0,0.00041039,2]
[342841085,1732175432389,-1080.53018069,0.00041088,2]
[342841086,1732175432438,-831.58410695,0.00041088,2]
[342841087,1732175432450,-18087.88571236,0.00041088,2]
[342841088,1732175432460,-1702.81,0.00041119,2]
[342841089,1732175432470,-6232.76,0.0004151,2]
[342841090,1732175432480,-150.23,0.00041532,2]
[342841091,1732175432490,-200.0,0.00041579,2]
[342841092,1732175432499,-201.17,0.000416,2]
[342841093,1732175432508,-1068.08,0.0004162,2]
[342841094,1732175432518,-566.366,0.00041686,2]
[342841095,1732175432527,-1927.0,0.00041686,2]
[342841096,1732175432537,-815.0,0.00041686,2]
[342841097,1732175432547,-1178.149,0.00041686,2]
[342841098,1732175432557,-1182.77154335,0.00041686,2]
[342841099,1732175432596,-749.33345665,0.00041686,2]
[342841100,1732175432607,-150.0,0.00041686,2]
[342841101,1732175432616,-200.0,0.00041732,2]
[342841102,1732175432626,-1916.689,0.00041787,62]
[342841104,1732175432636,-102.88794436,0.00041846,2]
[342841106,1732175432651,-3880.76,0.00041846,2]
[342841108,1732175432663,-1103.3,0.00041846,2]
[342841110,1732175432675,-444.57453139,0.00041846,2]
[342841151,1732175433058,-18368.47752425,0.00041846,2]
[342841153,1732175433069,-300.0,0.00042,120]
[342841155,1732175433079,-165.76,0.00042137,2]
[342841157,1732175433090,-651.73,0.00042324,120]
[342841159,1732175433101,-632.34,0.00042496,10]
[342841161,1732175433111,-158.55,0.00042498,120]
[342841163,1732175433121,-3074.93,0.00042506,2]
[342841165,1732175433131,-217.1381,0.000426,2]
[342841167,1732175433142,-1000.0,0.000426,2]
[342841169,1732175433154,-273.8877,0.000426,2]
[342841171,1732175433165,-236.71087237,0.000426,28]
[342841173,1732175433175,-1717.8367,0.000426,2]
[342841175,1732175433186,-3064.14627456,0.000426,15]
[342841177,1732175433197,-3223.45781631,0.000426,15]
[342841179,1732175433207,-928.32722052,0.00042639,14]
[342841181,1732175433218,-250000.0,0.000427,30]
[342841182,1732175433229,-162.18733042,0.000427,30]
[342841184,1732175433240,-188.0,0.00042739,7]
[342841186,1732175433250,-151.0,0.00042739,14]
[342841189,1732175433261,-4578.834535,0.00042771,2]
[342841191,1732175433271,-874.063,0.00042813,2]
[342841193,1732175433283,-604.87715233,0.000429,120]
[342841195,1732175433294,-1809.1394,0.000429,2]
[342841197,1732175433304,-15797.1235,0.000429,2]
[342841199,1732175433314,-11950.16073647,0.000429,2]
[342841218,1732175433530,-5522.43577309,0.000429,2]
[342841363,1732175436490,218.51575,0.00025,2]
[342841364,1732175436731,218.51575,0.00034192,2]
[342841367,1732175438193,-592.08569065,0.000429,2]
[342841368,1732175438367,-301.60528413,0.000429,2]
[342841369,1732175438378,-893.6008315,0.000429,2]
[342841370,1732175438410,-948.82094668,0.000429,2]
[342841378,1732175440125,-3206.4969001,0.000429,2]
[342841382,1732175440938,-726.09837605,0.000429,2]
[342841383,1732175440950,-3922.72376133,0.000429,2]
[342841384,1732175440959,-1000.0,0.000429,2]
[342841385,1732175440968,-318.33091082,0.000429,2]
[342841386,1732175440978,-3064.14627451,0.00042909,15]
[342841387,1732175440987,-3223.45781628,0.00042909,15]
[342841388,1732175440997,-214.0,0.00043,7]
[342841389,1732175441006,-31859.94123708,0.00043,120]
[342841390,1732175441017,-1571.95,0.00043,120]
[342841391,1732175441084,-500.0,0.000429,2]
[342841392,1732175441094,-1438.98504124,0.00043,120]
[342841408,1732175443176,-190.5,0.00042,120]
[342841409,1732175443186,-5915.98223976,0.00043,120]
[342841412,1732175443197,-13261.51776024,0.00043,120]
[342841413,1732175443422,-2776.4999,0.00043,120]
[342841414,1732175443434,-9701.7,0.00043,120]
[342841415,1732175443446,-9580.62297589,0.00043,120]
[342841416,1732175443457,-19566.78957841,0.00043,2]
[342841417,1732175443468,-586.74999734,0.00043,2]
[342841418,1732175443511,-769.78509821,0.00043,2]
[342841419,1732175443522,-8005.92387998,0.00043,2]
[342841420,1732175443555,-31458.83475167,0.00043,2]
[342841421,1732175443572,-2612.91726137,0.00043,2]
[342841422,1732175443582,-38654.37852083,0.00043,120]
[342841423,1732175443592,-4093.30370435,0.00043,120]
[342841424,1732175443603,-347.29959478,0.00043,60]
[342841425,1732175443613,-2713.10091867,0.00043,30]
[342841426,1732175443625,-2784.80908133,0.00043,30]
[342841427,1732175443635,-208.59451175,0.00043,120]
[342841432,1732175443773,-5961.0635993,0.00043,120]
[342841434,1732175446090,-4550.0,0.00043,120]
[342841435,1732175446102,-7422.31435333,0.00043,120]
[342841436,1732175446112,-18232.68439757,0.00043,120]
[342841437,1732175446122,-550.0,0.00043,2]
[342841438,1732175446131,-151.0,0.00043013,14]
[342841439,1732175446142,-216.0,0.0004302,30]
[342841440,1732175446151,-2663.31219311,0.00043218,15]
[342841441,1732175446163,-284.22605,0.00043218,15]
[342841442,1732175446196,-116.6080314,0.00043218,15]
[342841443,1732175446206,-1184.76753117,0.00043218,15]
[342841444,1732175446218,-1448.15862065,0.00043218,15]
[342841445,1732175446303,-590.53166446,0.00043218,15]
[342841446,1732175446314,-318.33091079,0.00043258,2]
[342841447,1732175446324,-151.0,0.00043287,14]
[342841448,1732175446334,-165.07509855,0.000433,15]
[342841449,1732175446345,-434.92490145,0.000433,15]
[342841450,1732175446355,-1092.5785,0.00043384,2]
[342841451,1732175446365,-218.51575,0.00043384,2]
[342841452,1732175446375,-1300.0,0.000434,15]
[342841453,1732175446384,-1783.98084815,0.0004345,47]
[342841457,1732175448022,153.0,0.00031775,2]
[342841458,1732175448301,153.0,0.00031775,2]
[342841459,1732175448480,153.0,0.00031775,2]
[342841463,1732175572315,176.21962134,0.000319,120]
[342841464,1732175595331,700.0,0.000305,30]
[342841465,1732175618114,1069.11867202,0.0003,30]
[342841466,1732175651729,150.0,9.6e-05,2]
[342841467,1732175651755,50.0,9.6e-05,2]
[342841469,1732176348953,-165.14305454,0.00015242,2]
[342841470,1732176437320,-154.66,0.00015342,2]
[342841471,1732176437344,-163.29,0.00015342,2]
[342841472,1732176437366,-1019.06688658,0.00016662,2]
[342841473,1732176448021,-326.30969686,0.000143,2]
[342841474,1732176453096,-711.22092935,0.000143,2]
[342841475,1732176453126,-456.20639213,0.000143,2]
[342841476,1732176453148,-545.29914611,0.00016662,2]
[342841477,1732176453170,-150.0,0.00016862,2]
[342841478,1732176453191,-2092.285867,0.00019324,2]
[342841479,1732176453214,-300.0,0.0001942,2]
[342841480,1732176453235,-27.38189861,0.00019421,2]
[342841484,1732176546124,-150.0,0.0001687,2]
[342841485,1732176546148,-7227.07246987,0.00019421,2]
[342841486,1732176546172,-154.66,0.00022945,2]
[342841487,1732176546203,-299.99,0.0002498,7]
[342841488,1732176546227,-1194.97,0.0002498,2]
[342841489,1732176546251,-2035.01965122,0.0002498,2]
[342841490,1732176552116,-15513.06034878,0.0002498,2]
[342841491,1732176552139,-3410.0,0.000251,2]
[342841492,1732176552162,-280.0,0.000253,10]
[342841493,1732176552186,-437.0315,0.00025578,2]
[342841494,1732176552208,-218.51575,0.00026409,2]
[342841495,1732176552230,-1633.0,0.00027397,7]
[342841496,1732176552252,-169.0,0.0002783,15]
[342841497,1732176552277,-2000.0,0.00028533,2]
[342841498,1732176552298,-177.295,0.00028534,20]